Workbook

Sheet Instrument Worksheet
C6: Pilots Name: | D6: LT First Last | J6: DATE OF CHECK RIDE
J7: Month | K7: Day | L7: Year
C8: Date Prepared: | D8: 2014-08-28 | J8: 8 | K8: 29 | L8: 14
B10: MONTH | D10: AIRCRAFT | J10: SIMULATOR
D11: Hours | F11: Precision | H11: Non-Precision | J11: Hours | K11: Precision | L11: Non
D12: Actual | E12: Sim | F12: 1 | G12: A | H12: 2 | I12: B | J12: SIM | K12: A | L12: B
B13: =IF(K8 > 2,DATE(L8,J8,K8-SUM(K8-1)),"NA") -> 1914-08-01 | C13: =IF(K8 > 1,DATE(L8,J8,K8-1),"NA") -> 1914-08-28 | E13: 6.3 | G13: 6 | I13: 10 | J13: 7.8 | K13: 4 | L13: 12
B14: =DATE(L8,J8-1,K8-SUM(K8-1)) -> 1914-07-01 | E14: 2.1 | I14: 1 | J14: 2.6 | L14: 1
B15: =DATE(L8,J8-2,K8-SUM(K8-1)) -> 1914-06-01
B16: =DATE(L8,J8-3,K8-SUM(K8-1)) -> 1914-05-01
B17: =DATE(L8,J8-4,K8-SUM(K8-1)) -> 1914-04-01 | D17: 1.5 | J17: 0.5 | K17: 1
B18: =DATE(L8,J8-5,K8-SUM(K8-1)) -> 1914-03-01
B19: =DATE(L8,J8-6,K8) -> 1914-03-01 | C19: =DATE(L8,J8-5,K8-K8) -> 1914-02-28
B21: =IF(K8 > 1,DATE(L8,J8-6,K8-SUM(K8-1)),"NA") -> 1914-02-01 | C21: =DATE(L8,SUM(J8-6),K8 - 1) -> 1914-02-28 | E21: 1 | G21: 1 | I21: 1 | S21: =SUM(D6:E6) -> 0
B22: =DATE(L8,J8-7,K8-SUM(K8-1)) -> 1914-01-01 | D22: 3
B23: =DATE(L8,J8-8,K8-SUM(K8-1)) -> 1913-12-01 | D23: 7.6 | E23: 2 | F23: 1 | G23: 8 | I23: 6 | U23: 50% Rule for calcs
B24: =DATE(L8,J8-9,K8-SUM(K8-1)) -> 1913-11-01 | D24: 2.5 | E24: 0.1 | F24: 1 | J24: 3.5 | Q24: Sim's | R24: Hours | S24: Pre -A | T24: Non - B | U24: HRS | V24: PRE A | W24: Non B
B25: =DATE(L8,J8-10,K8-SUM(K8-1)) -> 1913-10-01 | D25: 1 | E25: 0.4 | J25: 1 | Q25: L6 | R25: =SUM(J13:J19) -> 10.9 | S25: =SUM(K13:K19) -> 5 | T25: =SUM(L13:L19) -> 13 | U25: =IF(R25>2.99,3,R25) -> 3 | V25: =IF(S25>2.99,3,S25) -> 3 | W25: =IF(T25>2.99,3,T25) -> 3
B26: =DATE(L8,J8-11,K8-SUM(K8-1)) -> 1913-09-01 | D26: 4.6 | E26: 0.7 | Q26: L12 | R26: =SUM(J13:J27) -> 15.4 | S26: =SUM(K13:K27) -> 5 | T26: =SUM(L13:L27) -> 13 | U26: =IF(R26>5.99,6,R26) -> 6 | V26: =IF(S26>5.99,6,S26) -> 5 | W26: =IF(T26>2.99,3,T26) -> 3
B27: =DATE(L8,J8-12,K8) -> 1913-08-29 | C27: =DATE(L8,J8-11,K8-K8) -> 1913-08-31 | D27: 0.1
A29: Checks | B29: Last 6 Months | C29: ACFT | D29: Instrument | E29: =SUM(D13:D19,E13:E19) -> 9.9 | F29: x => 3.0 | G29: Precision | H29: =SUM(F13:F19,G13:G19) -> 6 | I29: x => 3 | J29: Non-Precision | K29: =SUM(H13:H19,I13:I19) -> 11 | L29: x => 3
C30: ACFT + Simulator | E30: =SUM(D13:D19,E13:E19,J13:J19) -> 20.8 | F30: x => 6.0 | H30: =SUM(F13:F19,G13:G19,K13:K19) -> 11 | I30: x => 6 | K30: =SUM(H13:H19,I13:I19,L13:L19) -> 24 | L30: x => 6
B31: Last 12 Months | C31: ACFT | D31: Hours | E31: =SUM(D13:D27,E13:E27) -> 32.9 | G31: Approaches | H31: =SUM(F13:F27,G13:G27) -> 17 | J31: Approaches | K31: =SUM(H13:H27,I13:I27) -> 18 | L31: x => 3
C32: ACFT + Simulator | E32: =SUM(D13:D27,E13:E27,J13:J27) -> 48.3 | F32: x => 12 | H32: =SUM(F13:F27,G13:G27,K13:K27) -> 22 | I32: x => 12 | K32: =SUM(H13:H27,I13:I27,L13:L27) -> 31 | L32: x => 6
U33: 50% Rule for Calcs
G34: LAST | K34: LAST | U34: Last 12 | V34: Last 6
B35: Instrument Rating Requirements | F35: Approaches | G35: 6 Months | H35: 12 Months | J35: INST Time | K35: 12 Months | L35: 6 Months | U35: =SUM(D13:E27) -> 32.9 | V35: =SUM(D13:E19) -> 9.9 | W35: =SUM(U35:V35) -> 42.8
F36: Prec | G36: =IF(AND(H29>2.99, H30>5.99),H30,"SHORT") -> 11 | H36: =IF(AND(H31>5.99, H32>11.99), H32, "SHORT") -> 22 | J36: Actual | K36: =SUM(D13:D27) -> 20.3 | L36: =SUM(D13:D19) -> 1.5 | T36: Actual | U36: =IF(K36>5.99,6,K36) -> 6 | V36: =IF(L36>2.99,3,L36) -> 1.5
C37: Last 6 | D37: Last 12 | F37: Non-Prec | G37: =IF(AND(K29>2.99,K30>5.99),K30,"SHORT") -> 24 | H37: =IF(AND(K31>2.99, K32>5.99), K32, "SHORT") -> 31 | J37: Simulated | K37: =SUM(E13:E27,J13:J27) -> 28 | L37: =SUM(E13:E19,J13:J19) -> 19.3 | T37: Sim | U37: =IF(K37>5.99,6,K37) -> 6 | V37: =IF(L37>2.99,3,L37) -> 3
B38: Hours | C38: 6 | D38: 12 | K38: =IF(U26+E31>11.99,K36+K37,"SHORT") -> 48.3 | L38: =IF(U25+E29>5.99,L36+L37,"SHORT") -> 20.8 | T38: Total | U38: =SUM(U36:U37) -> 12 | V38: =SUM(V36:V37) -> 4.5
B39: Precision | C39: 6 | D39: 12 | F39: Still Need | G39: LAST
B40: Non-Precision | C40: 6 | D40: 6 | F40: Approaches | G40: 6 Months | H40: 12 Months | J40: Still Need | K40: LAST
F41: Prec | G41: =IF(G36="SHORT",6-H29-V25,"None") -> None | H41: =IF(H36="SHORT",12-H31-V26,"None") -> None | J41: INST Time | K41: 12 Months | L41: 6 Months
F42: Non-Prec | G42: =IF(G37="SHORT",6-K29-W25,"None") -> None | H42: =IF(H37="SHORT",6-K31-W26,"None") -> None | J42: Still Need | K42: =IF(K38="SHORT",12-(U35+U26),"None") -> None | L42: =IF(L38="SHORT",6-(U25+V35),"None") -> None

Sheet Sheet1
